bitfinex-derivatives/quotes_ETHF0:USTF0_20251223
["timestamp","ask_amount","ask_price","bid_price","bid_amount"]
[1766520151999,3.397,2946.0,2944.7,0.94292575]
[1766520152198,3.397,2946.0,2945.0,0.94292575]
[1766520152392,3.397,2946.0,2945.1,3.397]
[1766520152993,0.00509649,2945.8,2945.1,3.397]
[1766520155998,0.94292575,2945.7,2944.2,0.00509649]
[1766520156295,3.397,2945.6,2944.4,0.94292575]
[1766520156495,3.397,2945.6,2944.6,0.94292575]
[1766520156689,3.397,2945.6,2944.7,3.397]
[1766520159799,0.0039136,2946.0,2945.1,0.94292575]
[1766520160004,3.4009136,2946.0,2945.2,3.397]
[1766520160404,4.34383935,2946.0,2945.2,3.397]
[1766520160707,0.00509649,2945.9,2945.2,3.397]
[1766520161306,0.94292575,2945.8,2945.2,3.397]
[1766520161509,0.94292575,2945.6,2945.0,3.397]
[1766520161807,0.94292575,2945.6,2944.9,5.977]
[1766520162905,0.94292575,2945.4,2944.9,5.977]
[1766520163109,4.33892575,2945.4,2944.8,3.397]
[1766520164497,3.396,2945.4,2944.8,3.397]
[1766520165211,3.396,2945.5,2944.8,3.397]
[1766520166513,3.396,2945.5,2945.2,0.17508649]
[1766520167607,0.94292575,2945.7,2945.2,0.17508649]
[1766520167823,3.396,2945.6,2945.2,0.17508649]
[1766520170303,0.94292575,2945.7,2945.2,0.17508649]
[1766520170507,3.396,2945.5,2945.2,0.17508649]
[1766520171014,3.396,2945.5,2945.2,0.16999009]
[1766520172514,0.94292575,2945.7,2945.2,0.16999009]
[1766520173016,3.396,2945.6,2945.2,0.16999009]
[1766520173717,0.94292575,2945.7,2945.2,0.16999009]
[1766520174014,3.396,2945.6,2945.2,0.16999009]
[1766520174610,3.396,2945.6,2944.8,3.397]
[1766520181126,0.94292575,2945.5,2944.8,3.397]
[1766520182024,0.00509649,2945.9,2944.9,0.94292575]
[1766520183038,0.94292575,2946.6,2945.3,0.94292575]
[1766520183229,0.94292575,2946.2,2945.4,3.396]
[1766520183429,0.94292575,2946.2,2945.5,3.396]
[1766520184032,0.00509649,2946.1,2945.6,0.00509649]
[1766520188535,0.00509649,2946.1,2945.5,3.396]
[1766520189533,0.94802224,2946.1,2945.1,3.7554]
[1766520189842,0.94802224,2946.1,2945.1,3.396]
[1766520190233,0.00509649,2946.1,2945.2,0.94292575]
[1766520190434,3.396,2946.0,2945.2,0.94292575]
[1766520190632,3.396,2946.0,2945.3,0.00509649]
[1766520193350,3.396,2946.0,2943.3,4.18935686]
[1766520193351,4.33892575,2946.0,2944.0,0.00424161]
[1766520193644,4.33892575,2946.0,2944.7,0.94292575]
[1766520193845,4.33892575,2946.0,2944.8,3.396]
[1766520194442,4.33892575,2946.0,2945.1,0.00509649]
[1766520196054,3.396,2946.0,2945.1,0.00509649]
[1766520199152,0.16981,2945.9,2944.8,3.396]
[1766520199552,0.16981,2945.8,2945.3,0.16148499]
[1766520199856,0.16983,2945.6,2944.5,3.396]
[1766520200056,3.396,2945.5,2944.0,0.00424161]
[1766520200251,0.16984,2945.3,2944.1,3.396]
[1766520200449,3.396,2945.2,2944.1,3.396]
[1766520201758,0.16984,2945.3,2944.1,3.396]
[1766520201960,3.396,2945.2,2944.1,3.396]
[1766520205957,0.16985,2945.1,2944.1,3.396]
[1766520206869,0.16983,2945.6,2944.1,3.396]
[1766520207166,3.396,2945.5,2944.1,3.396]
[1766520207348,3.396,2945.4,2944.1,3.396]
[1766520208163,0.16983,2945.6,2944.1,3.396]
[1766520208461,7.189,2945.5,2944.1,3.396]
[1766520209255,0.16979,2946.3,2944.4,0.94185588]
[1766520209455,0.16979,2946.3,2944.5,5.962]
[1766520209660,3.396,2946.0,2944.6,8.492]
[1766520210657,3.396,2946.0,2944.7,9.37]
[1766520213662,0.00509649,2946.1,2944.7,9.37]
[1766520214959,3.396,2946.0,2944.7,9.37]
[1766520215160,0.00509649,2946.1,2944.7,9.37]
[1766520215363,3.40109649,2946.1,2944.9,0.94185588]
[1766520215563,0.00509649,2946.1,2945.0,3.396]
[1766520215862,3.396,2946.5,2945.3,0.94185588]
[1766520216168,3.396,2946.6,2945.4,9.37]
[1766520216662,0.00509649,2946.3,2945.7,0.00509649]
[1766520216964,0.00509649,2946.3,2945.8,3.396]
[1766520217464,3.3999654,2946.6,2945.8,3.396]
[1766520218264,3.396,2947.2,2946.0,0.94185588]
[1766520218560,3.39601,2947.6,2946.4,0.94185588]
[1766520218762,1e-05,2947.6,2946.5,3.396]
[1766520219264,1e-05,2947.6,2946.5,3.39948174]
[1766520219265,0.0038086,2947.6,2946.5,3.39948174]
[1766520219464,0.00509649,2947.3,2946.5,3.39948174]
[1766520219661,0.0038086,2947.6,2946.5,3.39948174]
[1766520220157,0.4123,2948.3,2946.5,3.39948174]
[1766520220365,3.396,2948.2,2946.5,3.39948174]
[1766520220661,0.00509649,2947.6,2946.5,3.39948174]
[1766520221264,0.00903371,2947.6,2946.5,3.39948174]
[1766520224861,3.395,2948.3,2946.7,0.94185588]
[1766520225062,3.395,2948.3,2946.8,9.366]
[1766520225764,3.39913813,2948.3,2947.3,0.00509649]
[1766520225970,0.00413813,2948.3,2947.4,4.992]
[1766520226470,0.0008,2948.5,2947.4,4.992]
[1766520226662,0.00339768,2948.2,2947.4,4.992]
[1766520227257,40.8,2949.0,2947.4,4.992]
[1766520227462,3.395,2948.9,2947.4,4.992]
[1766520228468,3.394,2948.8,2947.4,4.992]
[1766520229175,3.394,2948.8,2947.4,5.93385588]
[1766520232777,0.00332426,2949.0,2947.4,5.93385588]
[1766520233177,3.394,2948.9,2947.4,5.93385588]
[1766520234374,3.394,2948.9,2947.4,4.992]
[1766520235880,0.94185588,2948.5,2947.4,3.395]
[1766520236173,3.394,2948.4,2947.4,3.395]
[1766520236777,0.16965,2948.7,2947.4,3.395]
[1766520236981,3.393,2948.6,2947.4,8.704]
[1766520237570,0.16965,2948.7,2947.4,8.704]
[1766520237775,3.393,2948.5,2947.4,8.704]
[1766520238980,0.2606,2948.6,2947.4,8.704]
[1766520239285,0.16965,2948.7,2947.4,8.704]
[1766520240176,0.16965,2948.6,2947.3,0.00509649]
[1766520240382,3.393,2948.5,2947.3,0.00509649]
[1766520241484,3.393,2948.4,2947.3,0.00509649]
[1766520245477,0.2606,2948.6,2947.3,0.00509649]
[1766520245682,3.393,2948.5,2947.3,0.00509649]
[1766520247488,3.393,2948.4,2947.3,0.00509649]
[1766520252779,5.77765,2948.7,2947.3,0.00509649]
[1766520252780,0.16965,2948.7,2947.3,0.00509649]
[1766520252987,0.94821713,2948.6,2947.3,0.00509649]
[1766520253185,1.49921713,2948.6,2947.3,0.00509649]
[1766520253390,4.34121713,2948.5,2947.3,0.00509649]
[1766520253591,3.393,2948.5,2947.3,0.00509649]
[1766520254989,0.16965,2948.7,2947.3,0.00509649]
[1766520255194,4.34176269,2948.6,2947.3,0.00509649]
[1766520255394,0.94876269,2948.5,2947.3,0.00509649]
[1766520256096,3.393,2948.4,2947.3,0.00509649]
[1766520256391,3.393,2948.3,2947.3,0.00509649]
[1766520267602,3.393,2948.3,2947.2,3.393]
[1766520267901,0.16964,2948.9,2947.2,3.393]
[1766520267902,0.1208,2948.4,2947.2,3.393]
[1766520268099,3.393,2948.3,2947.2,3.393]
[1766520268593,0.00509649,2948.0,2947.5,0.00509649]
[1766520268796,0.00509649,2948.0,2947.6,3.393]
[1766520270005,0.00509649,2948.0,2947.6,4.33312181]
[1766520271802,0.00509649,2948.0,2947.6,3.393]
[1766520275202,0.1208,2948.2,2947.6,3.393]
[1766520275400,3.393,2948.5,2947.6,3.393]
[1766520277301,3.393,2948.5,2947.5,0.9452183]
[1766520280807,0.1696,2949.6,2948.1,0.94012181]
[1766520281109,3.393,2948.9,2948.1,4.33312181]
[1766520281516,3.393,2948.9,2948.1,3.393]
[1766520282898,0.05162426,2949.0,2948.1,3.393]
[1766520283098,3.393,2948.9,2948.1,3.393]
[1766520283913,4.33312181,2948.9,2948.0,3.393]
[1766520284112,4.33312181,2948.9,2948.0,1.0117]
[1766520284506,4.33312181,2948.9,2947.9,3.393]
[1766520285212,0.94012181,2948.7,2947.8,3.393]
[1766520285412,0.94012181,2947.9,2946.9,3.393]
[1766520285715,3.393,2947.8,2946.9,3.393]
[1766520286015,3.7127,2948.0,2947.2,0.94012181]
[1766520286208,3.393,2948.0,2947.2,4.33312181]
[1766520286411,3.393,2948.0,2947.3,0.00508776]
[1766520286613,0.00506738,2947.9,2947.3,0.00508776]
[1766520287619,0.94012181,2947.7,2946.7,3.393]
[1766520287911,3.393,2947.6,2946.8,0.94012181]
[1766520288118,3.393,2947.6,2947.0,0.94012181]
[1766520288308,0.00332426,2949.0,2947.0,4.33312181]
[1766520288514,9.78864,2948.9,2947.7,0.94012181]
[1766520288910,0.94012181,2947.9,2945.6,12.35448194]
[1766520289215,0.94012181,2946.9,2945.7,3.393]
[1766520289414,0.00508776,2946.6,2946.0,0.00508776]
[1766520289615,0.00508776,2946.6,2946.1,3.393]
[1766520289818,0.94012181,2947.1,2946.1,3.393]
[1766520290010,3.7558,2947.0,2946.1,3.39669129]
[1766520290210,3.393,2947.0,2946.1,3.39669129]
[1766520291015,0.94012181,2946.8,2946.0,0.00508776]
[1766520291215,0.94012181,2946.6,2945.7,3.393]
[1766520291420,3.393,2946.9,2946.1,0.94012181]
[1766520291623,0.16969,2947.9,2946.8,0.94012181]
[1766520292033,3.393,2947.8,2946.6,3.756]
[1766520292226,0.00508776,2947.5,2946.9,0.00508776]
[1766520292529,3.39808776,2947.5,2946.9,0.00508776]
[1766520292730,3.39808776,2947.5,2946.6,3.393]
[1766520293028,3.40054769,2947.5,2946.6,3.39655711]
[1766520293820,3.40054769,2947.5,2946.8,0.00508776]
[1766520295721,3.40054769,2947.5,2946.6,0.00355711]
[1766520296024,3.40054769,2947.5,2946.3,3.393]
[1766520296729,3.40054769,2947.5,2946.6,0.00508776]
[1766520296930,3.40054769,2947.5,2946.6,0.00914103]
[1766520299634,0.00754769,2947.5,2946.6,0.00914103]
[1766520299829,3.394,2947.4,2946.6,0.00914103]
[1766520301630,0.00754769,2947.5,2946.6,0.00914103]
[1766520301934,3.394,2947.4,2946.6,0.00914103]
[1766520304033,0.00754769,2947.5,2946.6,0.00914103]
[1766520304234,3.394,2947.4,2946.6,3.40314103]
[1766520305535,3.394,2947.4,2945.5,0.16983]
[1766520305839,4.84526668,2947.4,2945.6,16.806]
[1766520306442,5.01498668,2947.4,2945.6,16.806]
[1766520306635,5.01498668,2947.4,2946.2,0.00508776]
[1766520307238,0.16972,2947.4,2946.2,0.00508776]
[1766520307536,9.618,2947.3,2946.2,0.00508776]
[1766520307737,9.618,2947.2,2946.2,0.00508776]
[1766520309041,9.618,2947.1,2946.2,0.00508776]
[1766520313237,0.00754769,2947.5,2946.2,0.00508776]
[1766520313437,3.394,2947.4,2946.3,3.394]
[1766520313643,9.618,2947.4,2946.3,3.394]
[1766520313836,0.43894769,2947.5,2946.3,3.394]
[1766520314035,3.394,2947.4,2946.3,3.394]
[1766520314835,3.394,2947.4,2946.3,8.326]
[1766520317041,3.394,2948.1,2946.6,1.62103668]
[1766520317247,3.394,2948.1,2946.7,3.394]
[1766520318149,0.00508776,2947.7,2946.7,3.394]
[1766520319650,0.00246609,2948.1,2946.7,3.394]
[1766520319852,3.39646609,2948.1,2946.7,3.394]
[1766520320151,3.39646609,2948.1,2946.8,5.969]
[1766520320748,0.00508776,2947.7,2946.8,5.969]
[1766520329661,3.52208776,2947.7,2946.8,5.969]
[1766520332750,3.52208776,2947.7,2946.7,3.394]
[1766520337860,3.52208776,2947.7,2946.4,4.735]
[1766520338063,3.52208776,2947.7,2946.3,3.394]
[1766520338366,3.69178776,2947.7,2946.0,3.8255]
[1766520339264,0.16971,2947.6,2946.0,3.8255]
[1766520339464,3.394,2947.5,2946.0,3.8255]
[1766520339768,40.8,2947.4,2946.0,3.394]
[1766520340866,18.1,2947.3,2945.7,9.362]
[1766520341062,18.1,2947.3,2945.7,3.394]
[1766520341559,18.1,2947.3,2945.6,0.43410734]
[1766520341869,18.1,2947.3,2945.6,0.00260734]
[1766520342474,0.16974,2947.0,2945.6,0.00260734]
[1766520342667,0.16976,2946.8,2945.6,0.00260734]
[1766520342867,6.231,2946.7,2945.6,0.00260734]
[1766520343165,3.394,2946.6,2945.6,0.00260734]
[1766520343371,8.486,2946.5,2945.6,0.00260734]
[1766520344270,8.486,2946.5,2945.8,0.00508776]
[1766520345069,8.486,2946.5,2945.6,0.00260734]
[1766520346069,8.486,2946.5,2945.8,0.00339185]
[1766520346472,8.486,2946.5,2945.6,0.00260734]
[1766520346772,8.486,2946.5,2944.8,3.394]
[1766520346968,8.486,2946.5,2944.6,0.16988]
[1766520347565,0.00508776,2945.8,2944.6,0.16988]
[1766520347864,9.626,2945.7,2944.6,0.00396943]
[1766520350870,18.114,2945.7,2944.6,0.00396943]
[1766520355686,0.00931557,2945.8,2944.6,0.00396943]
[1766520355982,16.932,2945.7,2944.6,0.00396943]
[1766520359664,16.932,2945.7,2943.5,1.51]
[1766520359665,16.932,2945.7,2943.5,1.67994]
[1766520359970,16.932,2945.7,2943.5,3.56594]
[1766520360171,0.16983,2945.6,2943.0,8.147]
[1766520360369,0.16983,2945.6,2943.2,0.0688]
[1766520360569,3.396,2945.4,2943.0,3.396]
[1766520360770,42.749,2945.3,2943.3,0.00328235]
[1766520361277,0.16986,2945.0,2943.3,0.00328235]
[1766520361574,3.396,2944.8,2942.3,3.396]
[1766520361876,0.00508776,2943.8,2942.4,3.396]
[1766520362074,3.396,2943.7,2942.6,0.16999]
[1766520362276,7.13,2943.6,2942.7,3.396]
[1766520362471,3.396,2943.5,2942.7,3.396]
[1766520363272,0.00509667,2943.4,2942.8,0.00509667]
[1766520363671,0.00509667,2943.4,2941.8,0.17004]
[1766520363872,8.49609667,2943.4,2941.5,3.396]
[1766520364377,8.49609667,2943.4,2941.8,3.396]
[1766520364778,8.49609667,2943.4,2941.8,3.39982195]
[1766520367780,6.242,2943.3,2941.8,3.39982195]
[1766520367971,3.397,2943.2,2941.8,3.39982195]
[1766520369374,3.397,2943.2,2941.8,0.00382195]
[1766520369973,40.8,2943.1,2941.8,0.00382195]
[1766520370173,6.246,2943.0,2941.8,0.00382195]
[1766520370381,3.397,2942.9,2941.8,0.00382195]
[1766520370975,0.00509667,2943.4,2941.8,0.00382195]
[1766520371275,8.495,2943.1,2941.8,0.00382195]
[1766520371476,0.00509667,2943.4,2941.8,0.00382195]
[1766520371477,3.398,2943.0,2941.8,0.00382195]
[1766520371671,1.016,2942.9,2941.8,0.00382195]
[1766520374881,0.00509667,2943.4,2942.1,0.17003]
[1766520375081,5.402,2943.2,2942.2,3.398]
[1766520375273,6.25109667,2943.4,2942.2,3.398]
[1766520375478,3.398,2943.2,2942.2,3.398]
[1766520376186,1.016,2943.2,2942.3,0.17001]
[1766520376384,3.398,2943.3,2942.3,0.17001]
[1766520378192,0.00509667,2943.4,2942.3,0.17001]
[1766520378491,3.398,2943.3,2942.3,0.17001]
[1766520380090,3.398,2943.3,2942.4,1.45502852]
[1766520380289,3.398,2943.3,2942.5,3.398]
[1766520383387,3.398,2943.3,2942.0,7.991]
[1766520384395,3.398,2943.3,2941.8,0.00382195]
[1766520384591,1.00772438,2943.2,2941.8,0.00382195]
[1766520385690,1.00772438,2943.1,2941.3,9.372]
[1766520385881,4.40572438,2943.0,2941.3,3.398]
[1766520386088,15.74972438,2942.9,2941.3,3.398]
[1766520386287,41.80772438,2942.8,2941.3,3.398]
[1766520386484,1.00772438,2942.7,2941.3,3.398]
[1766520386693,4.40572438,2942.6,2941.3,3.398]
[1766520386995,1.00772438,2942.5,2941.0,3.398]
[1766520387200,7.25572438,2942.4,2941.0,3.398]
[1766520387487,7.25572438,2942.4,2940.5,0.17012]
[1766520387488,7.25672438,2942.3,2940.5,3.56812]
[1766520387692,0.00509667,2941.7,2940.2,3.398]
[1766520387892,5.245,2941.6,2940.2,3.398]
[1766520388089,5.24758507,2941.6,2940.2,3.40111284]
[1766520388294,5.24758507,2941.6,2940.2,4.85614136]
[1766520388490,3.399,2941.5,2940.2,4.85614136]
[1766520389291,3.399,2941.5,2940.3,3.399]
[1766520390489,1.00852117,2941.4,2939.9,3.399]
[1766520390891,1.00852117,2941.3,2939.9,3.399]
[1766520391090,3.399,2941.2,2939.9,3.399]
[1766520391295,1.00773909,2941.1,2939.6,1.45502852]
[1766520391499,3.399,2941.0,2940.0,1.45502852]
[1766520391700,3.399,2941.0,2940.0,1.45936579]
[1766520391895,3.399,2941.0,2940.1,3.399]
[1766520392298,3.399,2941.0,2940.0,0.00433727]
[1766520392493,0.3756,2941.1,2940.2,3.57310479]
[1766520392694,3.399,2941.0,2940.2,3.57310479]
[1766520392910,3.399,2941.0,2940.1,3.399]
[1766520393092,3.399,2941.0,2940.2,3.57310479]
[1766520393797,3.4,2941.1,2940.3,3.57310479]
[1766520394496,0.3756,2941.2,2940.4,3.57310479]
[1766520394698,3.4,2941.1,2940.2,3.4]
[1766520394897,3.4,2941.1,2940.3,3.57310479]
[1766520398100,3.4,2941.1,2940.2,3.4]
[1766520398305,0.00258507,2941.6,2940.2,6.97310479]
[1766520398500,9.65,2941.5,2940.3,1.45502852]
[1766520398696,0.00509667,2941.7,2940.7,1.45502852]
[1766520398902,3.4,2942.0,2941.1,1.45502852]
[1766520399204,3.4,2942.0,2941.2,3.4]
[1766520399909,0.00509667,2941.9,2941.3,0.00509667]
[1766520401302,3.4,2942.5,2941.6,3.57310479]
[1766520401506,3.4,2942.5,2941.6,6.97310479]
[1766520401901,1.20923094,2943.7,2941.6,6.97310479]
[1766520401902,0.376,2942.6,2941.6,6.97310479]
[1766520402105,3.4,2942.8,2942.0,3.57310479]
[1766520402297,3.40509667,2942.7,2942.0,3.4]
[1766520402502,3.40509667,2942.7,2942.1,3.94910479]
[1766520402702,3.40509667,2942.7,2942.1,3.9517957]
[1766520402996,3.40509667,2942.7,2942.1,3.5757957]
[1766520403503,3.40509667,2942.7,2941.7,3.8514]
[1766520403804,3.40509667,2942.7,2941.8,0.99320479]
[1766520404303,3.40509667,2942.7,2941.7,3.4]
[1766520404502,3.40509667,2942.7,2941.5,5.976]
[1766520405509,8.5,2942.6,2941.2,3.4]
[1766520405708,3.441,2942.5,2941.3,0.00899411]
[1766520406010,3.4,2942.4,2941.3,0.00899411]
[1766520406204,0.00509667,2942.7,2941.7,0.99320479]
[1766520406409,3.4,2942.4,2941.7,4.39320479]
[1766520406609,3.4,2942.4,2941.7,3.4]
[1766520406809,3.4,2942.4,2941.8,0.99320479]
[1766520407513,3.4,2942.4,2941.5,3.4]
[1766520409514,3.4,2942.4,2941.4,3.4]
[1766520409705,3.4,2942.4,2941.4,6.8]
[1766520410710,0.00509667,2942.7,2941.4,6.8]
[1766520410917,3.4,2942.6,2941.6,4.85502852]
[1766520411217,1.20923094,2944.2,2942.1,0.17003]
[1766520411514,17.82923447,2944.1,2942.2,3.4]
[1766520411705,41.80923447,2944.0,2942.2,3.4]
[1766520411906,40.8,2944.0,2942.2,3.4]
[1766520412307,0.00509667,2943.4,2942.8,0.00509667]
[1766520412517,3.4,2943.3,2942.8,0.00509667]
[1766520412719,3.4,2943.3,2942.2,3.4]
[1766520413025,3.4,2943.3,2942.3,3.4]
[1766520413708,3.4,2943.3,2942.5,0.00509667]
[1766520413911,3.4,2943.3,2942.2,3.4]
[1766520415016,3.4,2943.3,2942.5,0.00509667]
[1766520418720,3.4,2943.3,2942.2,3.4]
[1766520418921,3.4,2943.3,2942.3,0.376]
[1766520419311,0.73209667,2943.4,2942.3,5.974]
[1766520419626,0.00509667,2943.4,2942.6,3.4]
[1766520419921,0.00509667,2943.4,2942.6,6.799]
[1766520421718,3.399,2943.3,2942.6,6.799]
[1766520424511,40.80414926,2944.0,2942.6,6.799]
[1766520424512,0.00414926,2944.0,2942.6,8.25402852]
[1766520424717,3.399,2943.9,2943.0,1.45502852]
[1766520425012,3.399,2943.9,2943.1,3.399]
[1766520425616,0.00509667,2943.8,2943.2,0.00509667]
[1766520426721,2.0554,2943.9,2943.2,0.00509667]
[1766520426928,3.399,2944.5,2943.4,1.45502852]
[1766520427225,3.399,2944.5,2943.5,6.687]
[1766520427820,0.00509667,2944.3,2943.5,6.68994078]
[1766520428216,3.40305359,2944.5,2943.5,6.68994078]
[1766520429125,0.00405359,2944.5,2943.8,1.45502852]
[1766520429330,9.324,2944.8,2943.9,3.398]
[1766520429626,3.398,2945.4,2944.2,1.45502852]
[1766520429828,3.398,2945.3,2944.3,3.398]
[1766520430029,6.246,2945.6,2944.3,3.398]
[1766520430030,3.398,2945.2,2944.3,3.398]
[1766520430328,0.00509667,2945.0,2944.5,0.00509667]
[1766520431025,0.00509667,2945.0,2943.5,1.4579693]
[1766520431329,0.00509667,2945.0,2943.6,9.37]
[1766520432020,0.00509667,2945.0,2944.0,0.00509667]
[1766520432221,0.00509667,2945.0,2944.0,3.40309667]
[1766520434028,1.25362519,2944.1,2941.0,4.25320631]
[1766520434332,1.45502852,2943.9,2941.6,0.17005]
[1766520434627,12.258,2943.8,2942.2,1.45502852]
[1766520434823,3.398,2943.7,2942.3,3.497]
[1766520435024,0.00509667,2943.3,2942.7,0.00509667]
[1766520435225,0.00509667,2943.3,2942.8,3.398]
[1766520435530,3.469,2944.0,2942.9,2.529]
[1766520435531,6.867,2944.0,2942.9,2.529]
[1766520436428,0.00509667,2943.7,2942.9,2.529]
[1766520438128,0.00509667,2943.7,2942.7,0.00509667]
[1766520438429,0.00509667,2943.7,2942.8,3.398]
[1766520438823,3.398,2943.6,2942.7,0.00509667]
[1766520439232,3.398,2943.6,2942.8,3.398]
[1766520444630,3.398,2944.9,2942.9,8.496]
[1766520445135,44.198,2944.9,2942.9,8.496]
[1766520445639,0.00509667,2944.2,2942.9,8.496]
[1766520447143,0.00509667,2944.2,2942.9,8.66598]
[1766520447340,3.398,2944.5,2943.0,0.16997]
[1766520447533,0.6476,2944.7,2943.1,8.90397]
[1766520447734,3.398,2944.9,2943.1,8.734]
[1766520447934,3.40125491,2945.2,2943.3,1.64925818]
[1766520448135,1.20923094,2946.5,2943.3,1.64925818]
[1766520448136,3.398,2945.8,2944.1,0.16991]
[1766520448434,3.398,2945.8,2944.0,0.6476]
[1766520448435,0.00337699,2945.2,2944.0,0.6476]
[1766520448639,0.00337699,2945.2,2944.2,0.099]
[1766520449235,0.00696674,2945.2,2944.2,0.099]
[1766520449437,0.00696674,2945.2,2944.4,0.00509667]
[1766520449743,0.00696674,2945.2,2944.5,3.398]
[1766520450739,0.00696674,2945.2,2944.4,5.97956362]
[1766520450945,0.00696674,2945.2,2944.5,3.397]
[1766520452341,0.00696674,2945.2,2944.4,5.97856362]
[1766520452536,0.00696674,2945.2,2944.6,3.397]
[1766520452937,0.00696674,2945.2,2944.4,0.00856362]
[1766520453143,0.00696674,2945.2,2944.5,3.397]
[1766520455049,0.5763,2945.8,2944.5,3.397]
[1766520455247,3.397,2946.0,2944.5,3.397]
[1766520456152,0.00509667,2945.5,2944.5,3.397]
[1766520457049,0.00509667,2945.5,2944.6,3.397]
[1766520457257,0.00509667,2945.5,2944.5,3.397]
[1766520457451,0.00509667,2945.5,2944.4,0.00856362]
[1766520457658,8.493,2945.4,2944.2,3.397]
[1766520457861,3.397,2945.3,2943.5,0.16994]
[1766520458053,3.397,2945.3,2943.6,3.496]
[1766520458253,3.397,2945.3,2943.7,3.397]
[1766520458754,0.16985,2945.2,2943.3,3.397]
[1766520458954,1.1613548,2945.2,2943.3,3.397]
[1766520459258,0.99152592,2945.1,2943.3,3.397]
[1766520459460,9.635,2945.0,2943.3,3.397]
[1766520459655,9.635,2945.0,2943.1,0.7804]
[1766520459958,9.635,2945.0,2943.3,0.00310424]
[1766520460259,9.635,2945.0,2943.3,3.40010424]
[1766520460761,9.635,2945.0,2943.9,0.00509667]
[1766520461062,40.8,2944.9,2943.9,0.00509667]
[1766520463163,40.8,2944.9,2943.0,3.397]
[1766520463164,0.16987,2944.8,2943.0,3.397]
[1766520463361,3.397,2944.7,2943.0,3.397]
[1766520463664,8.493,2944.6,2943.0,3.397]
[1766520463858,6.253,2944.5,2943.0,3.397]
[1766520464065,3.397,2944.4,2943.5,0.00509667]
[1766520464369,9.652,2944.3,2943.5,0.00509667]
[1766520465765,9.652,2944.3,2943.5,6.80256362]
[1766520465959,9.652,2944.3,2943.3,3.397]
[1766520466757,9.652,2944.3,2943.5,0.00339776]
[1766520477672,9.652,2944.3,2943.3,3.397]
[1766520477870,9.652,2944.3,2943.0,0.00405256]
[1766520477871,9.652,2944.3,2943.0,3.40205256]
[1766520478364,0.16991,2944.1,2943.0,0.00405256]
[1766520478565,0.00509667,2943.8,2943.0,0.00405256]
[1766520478764,6.765,2943.7,2943.0,0.00405256]
[1766520478964,6.765,2943.7,2942.8,3.398]
[1766520479175,6.765,2943.7,2942.7,3.398]
[1766520479773,0.0088124,2943.8,2942.7,3.398]
[1766520479965,9.651,2943.6,2942.7,3.40207639]
[1766520481071,6.253,2943.7,2942.7,3.40207639]
[1766520481374,3.398,2943.6,2942.7,3.40207639]
[1766520482568,0.0088124,2943.8,2942.7,3.40207639]
[1766520482776,3.398,2944.1,2942.7,3.40207639]
[1766520483168,3.398,2944.4,2942.9,0.16998]
[1766520483369,3.398,2944.6,2943.0,11.894]
[1766520483576,3.398,2944.6,2943.1,2.997]
[1766520483763,0.00509667,2944.1,2943.6,0.00509667]
[1766520483965,0.00786664,2944.1,2943.7,3.398]
[1766520484978,0.00786664,2944.1,2943.6,0.00509667]
[1766520485179,0.00786664,2944.1,2943.7,3.398]
[1766520485581,0.00786664,2944.1,2943.6,0.00509667]
[1766520485779,0.00786664,2944.1,2943.7,3.398]
[1766520489380,0.00786664,2944.1,2942.9,0.16998]
[1766520489580,0.00786664,2944.1,2943.3,5.969]
[1766520489775,0.00786664,2944.1,2942.9,0.16998]
[1766520489980,3.398,2944.0,2943.0,3.551]
[1766520495984,3.398,2944.0,2943.0,3.398]
[1766520498090,8.496,2945.0,2943.2,0.16996]
[1766520498091,3.398,2944.5,2943.2,0.16996]
[1766520498391,3.398,2944.5,2943.3,8.736]
[1766520498984,0.00509667,2944.2,2943.6,0.00509667]
[1766520499196,0.00509667,2944.2,2943.7,3.398]
[1766520499691,3.40068263,2944.5,2943.7,3.398]
[1766520500695,1.62392116,2946.1,2943.7,4.85212116]
[1766520500889,13.6188138,2946.0,2943.7,4.85212116]
[1766520501089,41.7918138,2945.9,2943.7,4.85212116]
[1766520501393,0.9918138,2945.8,2943.7,4.85212116]
[1766520501589,3.398,2945.7,2943.7,4.85212116]
[1766520501892,0.00509667,2945.0,2943.7,4.85212116]
[1766520502595,0.00509667,2945.0,2943.7,5.02205116]
[1766520504097,3.397,2945.5,2944.1,1.45412116]
[1766520504297,3.397,2945.5,2944.2,6.31]
[1766520504684,0.0029506,2945.8,2944.5,1.45412116]
[1766520504990,0.00509667,2945.4,2944.6,3.397]
[1766520505185,0.0029506,2945.8,2944.6,3.397]
[1766520506292,0.00509667,2945.5,2944.6,3.397]
[1766520507093,0.0029506,2945.8,2944.6,3.397]
[1766520508193,0.00339776,2945.5,2944.6,3.397]
[1766520510896,0.0029506,2945.8,2944.6,3.397]
[1766520511292,0.0029506,2945.8,2944.9,1.45412116]
[1766520511598,3.397,2946.1,2945.0,7.22]
[1766520511996,3.397,2946.1,2945.3,0.00509667]
[1766520512301,3.397,2946.1,2945.4,3.396]
[1766520512501,3.40103438,2946.1,2945.4,3.396]
[1766520513204,0.00403438,2946.1,2945.4,3.396]
[1766520520005,0.00403438,2946.1,2945.5,0.94140533]
[1766520522420,0.00403438,2946.1,2945.4,3.396]
[1766520522620,0.94140533,2945.8,2945.1,3.396]
[1766520522810,3.396,2946.0,2945.1,3.396]